Workbook

Sheet Plantilla Presupuesto
B1: Ministerio de Medio Ambiente y Recusos Naturales
B2: Museo Nacional de Historia Natural
B3: Prof. Eugenio de Jesus Marcano
B4: Año 2023
B6: Presupuesto de Gastos y Aplicaciones Financieras
B7: En RD$
B9: Detalle | C9: Presupuesto Aprobado | D9: Presupuesto Modificado
B10: 2 - GASTOS
B11: 2.1 - REMUNERACIONES Y CONTRIBUCIONES | C11: =+C12+C13+C14+C15+C16 -> 42,331,315.00
B12: 2.1.1 - REMUNERACIONES | C12: 34,529,478
B13: 2.1.2 - SOBRESUELDOS | C13: 3,197,055
B14: 2.1.3 - DIETAS Y GASTOS DE REPRESENTACIÓN | C14: 0
B15: 2.1.4 - GRATIFICACIONES Y BONIFICACIONES | C15: 0
B16: 2.1.5 - CONTRIBUCIONES A LA SEGURIDAD SOCIAL | C16: 4,604,782
B17: 2.2 - CONTRATACIÓN DE SERVICIOS | C17: =+C18+C19+C20+C21+C22+C23+C24+C25+C26 -> 12,929,584
B18: 2.2.1 - SERVICIOS BÁSICOS | C18: 6,246,964
B19: 2.2.2 - PUBLICIDAD, IMPRESIÓN Y ENCUADERNACIÓN | C19: 479,678
B20: 2.2.3 - VIÁTICOS | C20: 360,000
B21: 2.2.4 - TRANSPORTE Y ALMACENAJE | C21: 12,000
B22: 2.2.5 - ALQUILERES Y RENTAS | C22: 350,000
B23: 2.2.6 - SEGUROS | C23: 616,180
B24: 2.2.7 - SERVICIOS DE CONSERVACIÓN, REPARACIONES MENORES E INSTALACIONES TEMPORALES | C24: 2,481,521
B25: 2.2.8 - OTROS SERVICIOS NO INCLUIDOS EN CONCEPTOS ANTERIORES | C25: 1,853,241
B26: 2.2.9 - OTRAS CONTRATACIONES DE SERVICIOS | C26: 530,000
B27: 2.3 - MATERIALES Y SUMINISTROS | C27: =+C28+C29+C30+C31+C32+C33+C34+C35+C36 -> 2,317,916
B28: 2.3.1 - ALIMENTOS Y PRODUCTOS AGROFORESTALES | C28: 38,500
B29: 2.3.2 - TEXTILES Y VESTUARIOS | C29: 75,000
B30: 2.3.3 - PRODUCTOS DE PAPEL, CARTÓN E IMPRESOS | C30: 80,000
B31: 2.3.4 - PRODUCTOS FARMACÉUTICOS | C31: 15,000
B32: 2.3.5 - PRODUCTOS DE CUERO, CAUCHO Y PLÁSTICO | C32: 50,000
B33: 2.3.6 - PRODUCTOS DE MINERALES, METÁLICOS Y NO METÁLICOS | C33: 15,000
B34: 2.3.7 - COMBUSTIBLES, LUBRICANTES, PRODUCTOS QUÍMICOS Y CONEXOS | C34: 1,479,000
B35: 2.3.8 - GASTOS QUE SE ASIGNARÁN DURANTE EL EJERCICIO (ART. 32 Y 33 LEY 423-06) | C35: 0
B36: 2.3.9 - PRODUCTOS Y ÚTILES VARIOS | C36: 565,416
B37: 2.4 - TRANSFERENCIAS CORRIENTES
B38: 2.4.1 - TRANSFERENCIAS CORRIENTES AL SECTOR PRIVADO
B39: 2.4.2 - TRANSFERENCIAS CORRIENTES AL GOBIERNO GENERAL NACIONAL
B40: 2.4.3 - TRANSFERENCIAS CORRIENTES A GOBIERNOS GENERALES LOCALES
B41: 2.4.4 - TRANSFERENCIAS CORRIENTES A EMPRESAS PÚBLICAS NO FINANCIERAS
B42: 2.4.5 - TRANSFERENCIAS CORRIENTES A INSTITUCIONES PÚBLICAS FINANCIERAS
B43: 2.4.7 - TRANSFERENCIAS CORRIENTES AL SECTOR EXTERNO
B44: 2.4.9 - TRANSFERENCIAS CORRIENTES A OTRAS INSTITUCIONES PÚBLICAS
B45: 2.5 - TRANSFERENCIAS DE CAPITAL
B46: 2.5.1 - TRANSFERENCIAS DE CAPITAL AL SECTOR PRIVADO
B47: 2.5.2 - TRANSFERENCIAS DE CAPITAL AL GOBIERNO GENERAL NACIONAL
B48: 2.5.3 - TRANSFERENCIAS DE CAPITAL A GOBIERNOS GENERALES LOCALES
B49: 2.5.4 - TRANSFERENCIAS DE CAPITAL A EMPRESAS PÚBLICAS NO FINANCIERAS
B50: 2.5.5 - TRANSFERENCIAS DE CAPITAL A INSTITUCIONES PÚBLICAS FINANCIERAS
B51: 2.5.6 - TRANSFERENCIAS DE CAPITAL AL SECTOR EXTERNO
B52: 2.5.9 - TRANSFERENCIAS DE CAPITAL A OTRAS INSTITUCIONES PÚBLICAS
B53: 2.6 - BIENES MUEBLES, INMUEBLES E INTANGIBLES | C53: =+C54+C55+C56+C57+C58+C60+C59+C61+C62 -> 3,421,185
B54: 2.6.1 - MOBILIARIO Y EQUIPO | C54: 2,521,185
B55: 2.6.2 - MOBILIARIO Y EQUIPO EDUCACIONAL Y RECREATIVO | C55: 200,000
B56: 2.6.3 - EQUIPO E INSTRUMENTAL, CIENTÍFICO Y LABORATORIO
B57: 2.6.4 - VEHÍCULOS Y EQUIPO DE TRANSPORTE, TRACCIÓN Y ELEVACIÓN
B58: 2.6.5 - MAQUINARIA, OTROS EQUIPOS Y HERRAMIENTAS | C58: 350,000
B59: 2.6.6 - EQUIPOS DE DEFENSA Y SEGURIDAD | C59: 20,000
B60: 2.6.7 - ACTIVOS BIÓLOGICOS CULTIVABLES
B61: 2.6.8 - BIENES INTANGIBLES | C61: 250,000
B62: 2.6.9 - EDIFICIOS, ESTRUCTURAS, TIERRAS, TERRENOS Y OBJETOS DE VALOR | C62: 80,000
B63: 2.7 - OBRAS
B64: 2.7.1 - OBRAS EN EDIFICACIONES
B65: 2.7.2 - INFRAESTRUCTURA
B66: 2.7.3 - CONSTRUCCIONES EN BIENES CONCESIONADOS
B67: 2.7.4 - GASTOS QUE SE ASIGNARÁN DURANTE EL EJERCICIO PARA INVERSIÓN (ART. 32 Y 33 LEY 423-06)
B68: 2.8 - ADQUISICION DE ACTIVOS FINANCIEROS CON FINES DE POLÍTICA
B69: 2.8.1 - CONCESIÓN DE PRESTAMOS
B70: 2.8.2 - ADQUISICIÓN DE TÍTULOS VALORES REPRESENTATIVOS DE DEUDA
B71: 2.9 - GASTOS FINANCIEROS
B72: 2.9.1 - INTERESES DE LA DEUDA PÚBLICA INTERNA
B73: 2.9.2 - INTERESES DE LA DEUDA PUBLICA EXTERNA
B74: 2.9.4 - COMISIONES Y OTROS GASTOS BANCARIOS DE LA DEUDA PÚBLICA
B75: Total Gastos | C75: =+C11+C17+C27+C53 -> 61,000,000
B77: 4 - APLICACIONES FINANCIERAS
B78: 4.1 - INCREMENTO DE ACTIVOS FINANCIEROS | C78: =+C79+C80 -> 0
B79: 4.1.1 - INCREMENTO DE ACTIVOS FINANCIEROS CORRIENTES | C79: 0
B80: 4.1.2 - INCREMENTO DE ACTIVOS FINANCIEROS NO CORRIENTES | C80: 0
B81: 4.2 - DISMINUCIÓN DE PASIVOS | C81: =+C82+C83 -> 0
B82: 4.2.1 - DISMINUCIÓN DE PASIVOS CORRIENTES | C82: 0
B83: 4.2.2 - DISMINUCIÓN DE PASIVOS NO CORRIENTES | C83: 0
B84: 4.3 - DISMINUCIÓN DE FONDOS DE TERCEROS | C84: =+C85 -> 0
B85: 4.3.5 - DISMINUCIÓN DEPÓSITOS FONDOS DE TERCEROS
B86: TOTAL APLICACIONES FINANCIERAS
B88: TOTAL GASTOS Y APLICACIONES FINANCIERAS | C88: =+C86+C75 -> 61,000,000
B89: Fuente: [fuente]
A95: Esthel Mora | E95: Nestina Contreras
A96: Preparo por: | E96: Revisado por:
A97: Analista de Presupuesto | E97: Encargada Admistrativa Financiera

Sheet Plantilla Ejecución
A1: Ministerio de Medio Ambiente | P1: Notas:
A2: Museo Nacional de Historia Natural "Prof. Eugenio de Jesus Marcano | P2: 1. Gasto devengado.
A3: Año 2023 | P3: 2. Se presenta el gasto por mes; cada mes se debe actualizar el gasto devengado de los meses anteriores.
A4: Ejecución de Gastos y Aplicaciones Financieras | P4: 3. Se presenta la clasificación objetal del gasto al nivel de cuenta.
A5: En RD$ | P5: 4. Fecha de imputación: último día del mes analizado
P6: 5. Fecha de registro: el día 10 del mes siguiente al mes analizado
A7: Detalle | B7: Total | C7: Enero | D7: Febrero | E7: Marzo | F7: Abril | G7: Mayo | H7: Junio | I7: Julio | J7: Agosto | K7: Septiembre | L7: Octubre | M7: Noviembre | N7: Diciembre | Z7: =SUM(R8:Z8) -> 11.03 | AA7: =+Z7+AA8 -> 13.99
A8: 2 - GASTOS | R8: 1.00 | S8: 1.05 | T8: =+S8*1.05 -> 1.10 | U8: 1.16 | V8: 1.22 | W8: 1.28 | X8: 1.34 | Y8: 1.41 | Z8: 1.48 | AA8: =+Z8*2 -> 2.96
A9: 2.1 - REMUNERACIONES Y CONTRIBUCIONES | C9: =+C10+C11+C12+C14 -> 2,601,738.16 | D9: =SUM(D10:D14) -> 2,651,997.49 | E9: =SUM(E10:E14) -> 2,799,237.87 | F9: =SUM(F10:F14) -> 3,335,736.23
A10: 2.1.1 - REMUNERACIONES | C10: 2,216,780.00 | D10: 2,267,780.00 | E10: 2,400,030.00 | F10: 2,429,628.52
A11: 2.1.2 - SOBRESUELDOS | C11: 49,695.68 | D11: 41,418.53 | E11: 36,827.28 | F11: 538,048.78
A12: 2.1.3 - DIETAS Y GASTOS DE REPRESENTACIÓN | C12: 0 | D12: 0 | E12: 0
A13: 2.1.4 - GRATIFICACIONES Y BONIFICACIONES | C13: 0 | D13: 0 | E13: 0
A14: 2.1.5 - CONTRIBUCIONES A LA SEGURIDAD SOCIAL | C14: 335,262.48 | D14: 342,798.96 | E14: 362,380.59 | F14: 368,058.93
A15: 2.2 - CONTRATACIÓN DE SERVICIOS | C15: =+C16+C17+C18+C19+C20+C21+C22+C23+C24 -> 679,099.86 | D15: =+D16+D17+D18+D19+D20+D21+D22+D23+D24 -> 420,520.99 | E15: =+E16+E17+E18+E19+E20+E21+E22+E23+E24 -> 1,988,387.40 | F15: =+F16+F17+F18+F19+F20+F21+F22+F23+F24 -> 1,242,987.41 | G15: 0
A16: 2.2.1 - SERVICIOS BÁSICOS | C16: 413,256.96 | D16: 163,441.44 | E16: 1,191,782.65 | F16: 596,774.49
A17: 2.2.2 - PUBLICIDAD, IMPRESIÓN Y ENCUADERNACIÓN | C17: 173,755.00 | D17: 0 | E17: 94,477.88
A18: 2.2.3 - VIÁTICOS | C18: 0 | D18: 0 | E18: 0 | F18: 219,500.00
A19: 2.2.4 - TRANSPORTE Y ALMACENAJE | C19: 0 | D19: 0 | E19: 0
A20: 2.2.5 - ALQUILERES Y RENTAS | C20: 0 | D20: 57,364.55 | E20: 196,976.64
A21: 2.2.6 - SEGUROS | C21: 42,527.90 | D21: 199,715.00 | E21: 47,555.23 | F21: 56,577.71
A22: 2.2.7 - SERVICIOS DE CONSERVACIÓN, REPARACIONES MENORES E INSTALACIONES TEMPORALES | C22: 0 | D22: 0 | E22: 405,035.00 | F22: 195,189.00
A23: 2.2.8 - OTROS SERVICIOS NO INCLUIDOS EN CONCEPTOS ANTERIORES | C23: 49,560.00 | D23: 0 | E23: 52,560.00 | F23: 106,948.71
A24: 2.2.9 - OTRAS CONTRATACIONES DE SERVICIOS | C24: 0 | D24: 0 | E24: 0 | F24: 67,997.50
A25: 2.3 - MATERIALES Y SUMINISTROS | C25: =SUM(C26:C34) -> 191,974 | D25: =SUM(D26:D34) -> 320,574 | E25: =SUM(E26:E34) -> 515,917 | F25: =SUM(F26:F34) -> 553,027
A26: 2.3.1 - ALIMENTOS Y PRODUCTOS AGROFORESTALES | C26: 54,239 | E26: 98,455.80 | F26: 144,455.18
A27: 2.3.2 - TEXTILES Y VESTUARIOS | C27: 0 | D27: 0 | E27: 43,506.60 | F27: 139,328.50
A28: 2.3.3 - PRODUCTOS DE PAPEL, CARTÓN E IMPRESOS | C28: 0 | D28: 21,633.40 | E28: 38,122.97 | F28: 0
A29: 2.3.4 - PRODUCTOS FARMACÉUTICOS | C29: 0 | D29: 0 | E29: 0 | F29: 5,015.00
A30: 2.3.5 - PRODUCTOS DE CUERO, CAUCHO Y PLÁSTICO | C30: 0 | D30: 0 | E30: 0 | F30: 112,867.00
A31: 2.3.6 - PRODUCTOS DE MINERALES, METÁLICOS Y NO METÁLICOS | C31: 0 | D31: 1,785.00 | E31: 0 | F31: 7,174.40
A32: 2.3.7 - COMBUSTIBLES, LUBRICANTES, PRODUCTOS QUÍMICOS Y CONEXOS | C32: 0 | D32: 136,113.00 | E32: 0 | F32: 144,186.56
A33: 2.3.8 - GASTOS QUE SE ASIGNARÁN DURANTE EL EJERCICIO (ART. 32 Y 33 LEY 423-06) | C33: 0 | D33: 0 | E33: 0
A34: 2.3.9 - PRODUCTOS Y ÚTILES VARIOS | C34: 137,736 | D34: 161,042.98 | E34: 335,831.63
A35: 2.4 - TRANSFERENCIAS CORRIENTES | D35: =SUM(D36:D42) -> 0 | E35: =SUM(E36:E42) -> 0
A36: 2.4.1 - TRANSFERENCIAS CORRIENTES AL SECTOR PRIVADO
A37: 2.4.2 - TRANSFERENCIAS CORRIENTES AL GOBIERNO GENERAL NACIONAL
A38: 2.4.3 - TRANSFERENCIAS CORRIENTES A GOBIERNOS GENERALES LOCALES
A39: 2.4.4 - TRANSFERENCIAS CORRIENTES A EMPRESAS PÚBLICAS NO FINANCIERAS
A40: 2.4.5 - TRANSFERENCIAS CORRIENTES A INSTITUCIONES PÚBLICAS FINANCIERAS
A41: 2.4.7 - TRANSFERENCIAS CORRIENTES AL SECTOR EXTERNO
A42: 2.4.9 - TRANSFERENCIAS CORRIENTES A OTRAS INSTITUCIONES PÚBLICAS
A43: 2.5 - TRANSFERENCIAS DE CAPITAL
A44: 2.5.1 - TRANSFERENCIAS DE CAPITAL AL SECTOR PRIVADO
A45: 2.5.2 - TRANSFERENCIAS DE CAPITAL AL GOBIERNO GENERAL NACIONAL
A46: 2.5.3 - TRANSFERENCIAS DE CAPITAL A GOBIERNOS GENERALES LOCALES
A47: 2.5.4 - TRANSFERENCIAS DE CAPITAL A EMPRESAS PÚBLICAS NO FINANCIERAS
A48: 2.5.5 - TRANSFERENCIAS DE CAPITAL A INSTITUCIONES PÚBLICAS FINANCIERAS
A49: 2.5.6 - TRANSFERENCIAS DE CAPITAL AL SECTOR EXTERNO
A50: 2.5.9 - TRANSFERENCIAS DE CAPITAL A OTRAS INSTITUCIONES PÚBLICAS
A51: 2.6 - BIENES MUEBLES, INMUEBLES E INTANGIBLES | C51: =SUM(C52:C59) -> 23,364 | D51: =SUM(D52:D59) -> 125,146 | E51: =SUM(E52:E59) -> 202,271 | F51: =SUM(F52:F59) -> 285,762
A52: 2.6.1 - MOBILIARIO Y EQUIPO | D52: 125,146.00 | E52: 101,970.58 | F52: 285,761.98
A53: 2.6.2 - MOBILIARIO Y EQUIPO EDUCACIONAL Y RECREATIVO
A54: 2.6.3 - EQUIPO E INSTRUMENTAL, CIENTÍFICO Y LABORATORIO
A55: 2.6.4 - VEHÍCULOS Y EQUIPO DE TRANSPORTE, TRACCIÓN Y ELEVACIÓN
A56: 2.6.5 - MAQUINARIA, OTROS EQUIPOS Y HERRAMIENTAS | C56: 23,364 | E56: 100,300.00
A57: 2.6.6 - EQUIPOS DE DEFENSA Y SEGURIDAD
A58: 2.6.7 - ACTIVOS BIÓLOGICOS CULTIVABLES
A59: 2.6.8 - BIENES INTANGIBLES
A60: 2.6.9 - EDIFICIOS, ESTRUCTURAS, TIERRAS, TERRENOS Y OBJETOS DE VALOR
A61: 2.7 - OBRAS | C61: =SUM(C62:C65) -> 0 | D61: 0 | E61: 0
A62: 2.7.1 - OBRAS EN EDIFICACIONES
A63: 2.7.2 - INFRAESTRUCTURA
A64: 2.7.3 - CONSTRUCCIONES EN BIENES CONCESIONADOS
A65: 2.7.4 - GASTOS QUE SE ASIGNARÁN DURANTE EL EJERCICIO PARA INVERSIÓN (ART. 32 Y 33 LEY 423-06)
A66: 2.8 - ADQUISICION DE ACTIVOS FINANCIEROS CON FINES DE POLÍTICA | C66: =SUM(C67:C68) -> 0 | D66: 0 | E66: 0
A67: 2.8.1 - CONCESIÓN DE PRESTAMOS
A68: 2.8.2 - ADQUISICIÓN DE TÍTULOS VALORES REPRESENTATIVOS DE DEUDA
A69: 2.9 - GASTOS FINANCIEROS | C69: =SUM(C70:C72) -> 0
A70: 2.9.1 - INTERESES DE LA DEUDA PÚBLICA INTERNA
A71: 2.9.2 - INTERESES DE LA DEUDA PUBLICA EXTERNA
A72: 2.9.4 - COMISIONES Y OTROS GASTOS BANCARIOS DE LA DEUDA PÚBLICA
A73: Total Gastos | C73: =+C69+C66+C61+C51+C43+C35+C25+C15+C9 -> 3,496,176.22 | D73: =+D69+D66+D61+D51+D43+D35+D25+D15+D9 -> 3,518,238.86 | E73: =+E69+E66+E61+E51+E43+E35+E25+E15+E9 -> 5,505,812.85 | F73: =+F69+F66+F61+F51+F43+F35+F25+F15+F9 -> 5,417,512.26
A75: 4 - APLICACIONES FINANCIERAS
A76: 4.1 - INCREMENTO DE ACTIVOS FINANCIEROS | C76: =SUM(C77:C78) -> 0 | D76: 0
A77: 4.1.1 - INCREMENTO DE ACTIVOS FINANCIEROS CORRIENTES | C77: 0 | D77: 0
A78: 4.1.2 - INCREMENTO DE ACTIVOS FINANCIEROS NO CORRIENTES | C78: 0 | D78: 0
A79: 4.2 - DISMINUCIÓN DE PASIVOS | C79: =+C80+C81 -> 0 | D79: 0
A80: 4.2.1 - DISMINUCIÓN DE PASIVOS CORRIENTES | C80: 0 | D80: 0
A81: 4.2.2 - DISMINUCIÓN DE PASIVOS NO CORRIENTES | C81: 0 | D81: 0
A82: 4.3 - DISMINUCIÓN DE FONDOS DE TERCEROS | C82: =+C83 -> 0 | D82: 0
A83: 4.3.5 - DISMINUCIÓN DEPÓSITOS FONDOS DE TERCEROS | C83: 0 | D83: 0
A84: TOTAL APLICACIONES FINANCIERAS | C84: =+C76+C79+C82 -> 0 | D84: 0 | E84: 0
A86: TOTAL GASTOS Y APLICACIONES FINANCIERAS | C86: =+C73+C84 -> 3,496,176.22 | D86: =+D73+D84 -> 3,518,238.86 | E86: =+E73+E84 -> 5,505,812.85 | F86: =+F73+F84 -> 5,417,512.26
A87: Fuente: 0100
A88: Fecha de registro: hasta el 30 de abril del 2023
A89: Fecha de imputación: hasta el 30 de abril del 2023
B95: Esthel Mora | K95: Nestina Contreras
B96: Preparo por: | K96: Revisado por:
B97: Analista de Presupuesto | K97: Encargada Admistrativa Financiera
